bitfinex-derivatives/quotes_SOLF0:USTF0_20241127
["timestamp","ask_amount","ask_price","bid_price","bid_amount"]
[1732749776129,2.0642,242.0,241.95,2.32]
[1732749776929,2.0642,242.0,241.95,4.3845]
[1732749777132,1.2241,242.09,241.95,2.32]
[1732749777833,2.0643,241.98,241.94,13.96125765]
[1732749778235,2.0644,241.97,241.94,13.96125765]
[1732749778930,1.2241,242.09,241.94,13.96125765]
[1732749779135,2.0645,241.95,241.94,13.96125765]
[1732749779335,11.64125765,242.08,241.93,2.32]
[1732749779635,2.0646,241.94,241.93,2.32]
[1732749779830,11.64125765,242.08,241.93,2.32]
[1732749780336,2.0645,241.95,241.93,2.32]
[1732749781335,11.64125765,242.08,241.93,2.32]
[1732749781336,2.0644,241.97,241.93,2.32]
[1732749781533,2.0644,241.97,241.9,12.83235765]
[1732749781732,2.0644,241.97,241.91,2.32]
[1732749781936,11.64125765,242.08,241.94,11.64125765]
[1732749782134,2.0645,241.96,241.94,11.64125765]
[1732749783538,2.0645,241.95,241.94,11.64125765]
[1732749786139,2.0645,241.95,241.94,7.43747897]
[1732749790241,2.32,242.03,241.84,1.3171]
[1732749790441,7.43747897,241.94,241.75,3.6262]
[1732749790745,1.2337,241.93,241.92,7.43747897]
[1732749790934,2.0647,241.93,241.92,7.43747897]
[1732749791134,2.32,241.98,241.92,7.43747897]
[1732749791437,2.0646,241.94,241.93,7.43747897]
[1732749792338,2.0649,241.91,241.9,7.43747897]
[1732749798351,9.75747897,241.98,241.82,2.32]
[1732749798553,9.75747897,241.98,241.87,7.43747897]
[1732749798847,7.43747897,241.96,241.75,2.507]
[1732749799147,2.32,241.98,241.76,2.28]
[1732749799148,7.43747897,241.92,241.76,2.28]
[1732749799354,4.7826,241.91,241.82,7.43747897]
[1732749799852,7.43747897,241.9,241.82,7.43747897]
[1732749800245,2.0654,241.85,241.82,7.43747897]
[1732749801454,2.5026,241.91,241.84,7.43747897]
[1732749801651,2.5026,241.91,241.88,7.43747897]
[1732749802442,9.94007897,241.91,241.64,5.71613233]
[1732749802647,9.94007897,241.91,241.79,7.43747897]
[1732749802648,7.43747897,241.87,241.79,7.43747897]
[1732749802847,7.43747897,241.9,241.79,7.43747897]
[1732749803046,7.43747897,241.9,241.68,2.3]
[1732749803047,2.5026,241.91,241.82,7.43747897]
[1732749803249,2.3,241.9,241.84,7.43747897]
[1732749803750,2.0654,241.85,241.84,7.43747897]
[1732749804156,2.0656,241.83,241.76,4.3661]
[1732749804344,2.3,241.9,241.81,7.43747897]
[1732749804744,2.0652,241.88,241.81,7.43747897]
[1732749804950,2.3,241.9,241.81,7.43747897]
[1732749805547,2.3,241.9,241.84,7.43747897]
[1732749805754,2.0652,241.88,241.84,7.43747897]
[1732749807057,2.065,241.9,241.84,7.43747897]
[1732749807254,2.5026,241.91,241.84,7.43747897]
[1732749807660,2.5026,241.91,241.81,2.3]
[1732749807661,9.94007897,241.91,241.81,2.3]
[1732749807854,9.94007897,241.91,241.81,7.43747897]
[1732749808255,7.43747897,241.88,241.78,7.43747897]
[1732749808453,7.43747897,241.85,241.75,7.43747897]
[1732749808661,2.0661,241.77,241.75,7.43747897]
[1732749810058,2.0662,241.75,241.7,4.3666]
[1732749810261,2.3,241.81,241.73,7.43747897]
[1732749810556,2.0666,241.72,241.7,7.43747897]
[1732749810754,7.43747897,241.79,241.7,7.43747897]
[1732749810954,2.4888,241.8,241.72,7.43747897]
[1732749812151,2.4888,241.8,241.69,11.64248628]
[1732749812659,2.0662,241.76,241.71,2.0666]
[1732749813061,2.0657,241.82,241.76,2.0661]
[1732749813251,4.9154,241.88,241.73,13.94248628]
[1732749813456,7.04109153,241.87,241.73,13.94248628]
[1732749813657,6.2137,241.88,241.73,13.94248628]
[1732749813658,7.04109153,241.86,241.73,13.94248628]
[1732749813959,2.0661,241.77,241.73,13.94248628]
[1732749814163,6.2137,241.88,241.73,2.3]
[1732749814363,11.64248628,241.86,241.73,2.3]
[1732749814567,7.04056763,241.85,241.73,2.3]
[1732749814862,6.2137,241.88,241.73,13.94248628]
[1732749815062,7.03819781,241.87,241.73,13.94248628]
[1732749815264,2.0655,241.84,241.74,2.0663]
[1732749815460,6.2137,241.88,241.74,2.0663]
[1732749815661,7.03620501,241.87,241.73,13.94248628]
[1732749815861,6.2137,241.88,241.73,13.94248628]
[1732749816057,7.03637333,241.87,241.73,13.94248628]
[1732749816360,6.2137,241.88,241.73,13.94248628]
[1732749817053,3.9137,241.88,241.73,13.94248628]
[1732749817662,2.0657,241.82,241.76,2.0661]
[1732749818659,3.9137,241.88,241.76,2.0661]
[1732749819454,2.0657,241.82,241.76,2.0661]
[1732749819666,3.9137,241.88,241.76,2.0661]
[1732749820267,2.0657,241.81,241.76,2.0661]
[1732749822464,2.0657,241.81,241.73,13.94248628]
[1732749822465,3.9137,241.88,241.73,13.94248628]
[1732749822766,2.0657,241.82,241.77,2.066]
[1732749823964,2.0657,241.82,241.78,2.066]
[1732749825368,2.0656,241.83,241.73,13.94248628]
[1732749825565,53.26575359,241.91,241.77,11.64248628]
[1732749826068,2.0654,241.86,241.81,2.0656]
[1732749826765,53.26575359,241.91,241.8,2.3]
[1732749826967,2.0652,241.87,241.83,2.0656]
[1732749827670,2.0651,241.88,241.81,11.64248628]
[1732749828068,2.0651,241.88,241.8,2.3]
[1732749828069,2.0649,241.92,241.85,11.64248628]
[1732749828375,2.0649,241.92,241.88,2.0651]
[1732749828562,2.0649,241.92,241.86,2.3]
[1732749828765,2.0647,241.94,241.9,2.065]
[1732749830269,2.0647,241.93,241.9,2.065]
[1732749832472,2.0647,241.93,241.89,9.50625473]
[1732749833170,0.0839,241.93,241.89,9.50625473]
[1732749833469,0.27038,241.95,241.91,7.44125473]
[1732749833663,0.27038,241.95,241.94,7.44125473]
[1732749835468,7.44125473,242.07,241.94,7.44125473]
[1732749835665,7.04857238,242.06,242.0,7.44125473]
[1732749835865,7.44125473,242.09,242.0,9.72125473]
[1732749836069,7.0478316,242.08,242.0,9.72125473]
[1732749836276,2.0637,242.05,242.0,9.72125473]
[1732749836568,7.44125473,242.09,242.0,9.72125473]
[1732749836773,7.04557079,242.08,242.0,9.72125473]
[1732749836972,2.0638,242.03,242.0,9.72125473]
[1732749839076,7.44125473,242.09,242.0,9.72125473]
[1732749839865,2.0639,242.03,242.0,9.72125473]
[1732749840070,7.44125473,242.07,241.99,2.28]
[1732749840369,7.44125473,242.05,241.99,2.28]
[1732749841173,7.44125473,242.05,241.97,7.44125473]
[1732749841364,7.44125473,242.05,241.97,9.72125473]
[1732749841768,2.064,242.01,241.97,9.72125473]
[1732749842271,7.44125473,242.05,241.97,9.72125473]
[1732749842569,7.44125473,242.07,241.99,7.44125473]
[1732749843972,7.44125473,242.07,241.97,11.78565473]
[1732749844170,7.44125473,242.03,241.88,1.7855]
[1732749844366,7.44125473,242.03,241.94,7.44125473]
[1732749844572,7.44125473,242.03,241.95,2.28]
[1732749844771,7.44125473,242.03,241.94,7.44125473]
[1732749845073,2.28,242.09,241.92,2.28]
[1732749845074,7.44125473,242.01,241.92,2.28]
[1732749845678,2.0647,241.93,241.92,2.28]
[1732749845864,7.44125473,242.01,241.92,2.28]
[1732749846268,7.44125473,241.99,241.91,9.72125473]
[1732749846674,7.44125473,241.99,241.91,7.44125473]
[1732749847370,7.44125473,241.99,241.89,9.72125473]
[1732749847573,2.0647,241.93,241.89,11.78625473]
[1732749849271,2.0647,241.93,241.91,7.44125473]
[1732749852279,3.811,242.02,241.91,7.44125473]
[1732749852476,3.811,242.02,241.95,7.44125473]
[1732749852869,2.0643,241.98,241.95,7.44125473]
[1732749853381,3.811,242.02,241.95,7.44125473]
[1732749854590,2.0644,241.97,241.95,7.44125473]
[1732749855279,2.0644,241.97,241.92,2.0648]
[1732749855473,2.0644,241.97,241.93,9.50595473]
[1732749855781,2.0644,241.97,241.94,7.44125473]
[1732749857272,59.63599153,242.07,241.96,7.44125473]
[1732749857273,53.22879153,242.07,241.96,7.44125473]
[1732749857479,53.22879153,242.07,241.99,7.44125473]
[1732749857679,7.44125473,242.06,241.97,9.72125473]
[1732749857879,2.0638,242.04,241.97,9.72125473]
[1732749858075,53.22879153,242.07,241.99,7.44125473]
[1732749858684,2.0637,242.05,241.99,7.44125473]
[1732749858879,53.22879153,242.07,241.99,7.44125473]
[1732749859078,7.44125473,242.06,241.97,9.72125473]
[1732749859275,2.0641,242.01,241.97,9.72125473]
[1732749859476,53.22879153,242.07,241.99,7.44125473]
[1732749859676,53.22879153,242.07,241.97,9.72125473]
[1732749859878,7.44125473,242.06,241.97,9.72125473]
[1732749860074,2.064,242.01,241.97,11.78565473]
[1732749861080,2.0639,242.03,241.99,7.44125473]
[1732749861480,53.22879153,242.07,241.99,7.44125473]
[1732749861683,2.0638,242.04,242.0,2.0641]
[1732749861978,2.0638,242.04,242.01,7.44125473]
[1732749864285,7.44125473,242.1,242.01,7.44125473]
[1732749864484,2.0639,242.03,242.01,7.44125473]
[1732749866988,2.0639,242.03,241.99,2.0642]
[1732749869885,2.0639,242.03,241.99,9.50545473]
[1732749870193,2.0639,242.03,242.0,2.28]
[1732749871284,2.0639,242.03,241.99,9.50545473]
[1732749871493,7.44125473,242.02,241.88,1.7557]
[1732749871696,7.44125473,242.0,241.92,7.44125473]
[1732749872006,7.44125473,241.98,241.92,2.28]
[1732749872394,2.0645,241.96,241.91,2.28]
[1732749872594,1.2555,242.06,241.93,7.44125473]
[1732749872804,7.44125473,242.03,241.93,7.44125473]
[1732749873002,7.44125473,242.01,241.93,7.44125473]
[1732749873204,7.0746393,242.0,241.91,9.72125473]
[1732749873400,2.0643,241.98,241.91,7.44125473]
[1732749873704,7.44125473,241.99,241.92,2.28]
[1732749873907,7.07731908,241.98,241.9,2.28]
[1732749874107,7.07731908,241.97,241.9,2.28]
[1732749874305,7.44125473,241.99,241.9,2.28]
[1732749874503,7.0783347,241.98,241.9,2.28]
[1732749874707,7.0783347,241.97,241.9,2.28]
[1732749875013,2.0647,241.94,241.9,2.28]
[1732749875309,7.44125473,241.99,241.9,2.28]
[1732749875505,7.07902608,241.98,241.9,2.28]
[1732749875909,7.07902608,241.97,241.9,2.28]
[1732749876107,7.44125473,241.99,241.9,2.28]
[1732749876302,7.07891038,241.98,241.9,2.28]
[1732749876500,7.07891038,241.97,241.9,2.28]
[1732749876701,2.0647,241.94,241.9,2.28]
[1732749877302,7.44125473,241.99,241.9,2.28]
[1732749877508,7.08020365,241.98,241.9,2.28]
[1732749877703,7.08020365,241.97,241.9,2.28]
[1732749877904,1.2555,242.06,241.91,7.44125473]
[1732749877905,7.08020365,241.96,241.91,7.44125473]
[1732749878112,2.0645,241.95,241.91,7.44125473]
[1732749878309,7.44125473,242.03,241.93,9.50595473]
[1732749878510,2.0642,242.0,241.93,9.50595473]
[1732749878707,7.08069193,241.99,241.93,7.44125473]
[1732749879014,7.44125473,242.03,241.93,7.44125473]
[1732749879216,7.08054355,242.02,241.93,7.44125473]
[1732749879412,7.08054355,242.01,241.95,7.44125473]
[1732749879708,7.08054355,242.0,241.95,7.44125473]
[1732749879911,2.0642,242.0,241.96,4.3444]
[1732749880715,2.0642,241.99,241.97,7.44125473]
[1732749881104,7.44125473,242.05,241.97,7.44125473]
[1732749881308,7.08032839,242.04,241.97,9.50565473]
[1732749881510,7.08032839,242.03,241.99,7.44125473]
[1732749881712,7.08032839,242.02,241.99,7.44125473]
[1732749882007,1.2555,242.06,241.99,9.50545473]
[1732749882410,7.08027799,242.05,241.99,9.50545473]
[1732749882606,7.08027799,242.04,241.99,9.50545473]
[1732749882813,7.08027799,242.03,241.99,9.50545473]
[1732749883013,7.08027799,242.02,241.99,9.50545473]
[1732749883214,2.0639,242.03,241.99,9.50545473]
[1732749883522,7.08045968,242.02,241.99,9.50545473]
[1732749883709,2.0639,242.03,241.99,9.50545473]
[1732749883913,7.08045968,242.02,241.99,9.50545473]
[1732749884116,2.0639,242.03,241.99,9.50545473]
[1732749884320,7.08066183,242.02,241.96,2.28]
[1732749884519,7.44125473,242.05,241.96,2.28]
[1732749884715,7.08089941,242.04,241.96,2.28]
[1732749884916,2.064,242.01,241.96,4.3444]
[1732749885116,7.44125473,242.05,241.96,4.3444]
[1732749885319,7.0811227,242.04,241.96,4.3444]
[1732749885520,7.0811227,242.03,241.96,4.3444]
[1732749885820,7.0811227,242.02,241.96,4.3444]
[1732749886023,7.0811227,242.01,241.96,4.3444]
[1732749886219,7.44125473,242.05,241.96,4.3444]
[1732749886428,7.08118509,242.04,241.96,4.3444]
[1732749886626,7.08118509,242.03,241.96,4.3444]
[1732749886820,2.0641,242.01,241.96,4.3444]
[1732749887319,7.44125473,242.05,241.96,4.3444]
[1732749887521,2.0647,241.94,241.89,7.44125473]
[1732749887828,2.0647,241.94,241.9,2.28]
[1732749888122,2.28,242.05,241.9,2.28]
[1732749888123,7.44125473,241.97,241.9,2.28]
[1732749888518,2.0648,241.93,241.9,2.28]
[1732749889021,2.065,241.9,241.85,2.0653]
[1732749889215,7.44125473,241.95,241.86,2.28]
[1732749889424,7.08210968,241.94,241.86,2.28]
[1732749889620,7.44125473,241.95,241.86,9.72125473]
[1732749889815,7.08199584,241.94,241.86,9.72125473]
[1732749890026,7.44125473,241.95,241.86,9.72125473]
[1732749890222,2.065,241.9,241.86,9.72125473]
[1732749890424,7.44125473,241.93,241.86,2.28]
[1732749890628,7.08119904,241.92,241.86,2.28]
[1732749890828,2.0651,241.89,241.86,2.28]
[1732749893129,2.0651,241.89,241.85,7.44125473]
[1732749893331,2.0651,241.89,241.85,9.50665473]
[1732749893531,2.0649,241.91,241.85,7.44125473]
[1732749893732,2.0649,241.91,241.87,7.44125473]
[1732749894930,2.0649,241.91,241.87,9.50645473]
[1732749896425,2.0647,241.94,241.89,9.50625473]
[1732749896732,1.2158,241.97,241.91,7.44125473]
[1732749896927,7.07438613,241.96,241.91,9.72125473]
[1732749897232,1.2158,241.97,241.91,9.72125473]
[1732749897233,2.0646,241.94,241.91,9.72125473]
[1732749902831,2.28,242.03,241.91,9.72125473]
[1732749903031,7.07132392,242.04,241.96,7.44125473]
[1732749903237,7.07132392,242.03,241.98,7.44125473]
[1732749903531,3.765,242.08,241.98,9.72125473]
[1732749903532,7.44125473,242.07,241.98,9.72125473]
[1732749903737,7.44125473,242.05,241.98,2.28]
[1732749904037,2.0641,242.01,241.98,2.28]
[1732749906827,7.44125473,242.05,241.98,2.28]
[1732749907033,7.44125473,242.03,241.9,1.2904]
[1732749907227,7.07154201,242.02,241.93,7.44125473]
[1732749907733,7.07154201,242.02,241.93,9.50585473]
[1732749907734,2.0643,241.98,241.93,9.50585473]
[1732749908430,2.0643,241.98,241.94,2.0646]
[1732749909133,7.44125473,242.01,241.91,2.28]
[1732749909332,7.07430443,242.0,241.93,7.44125473]
[1732749909529,7.44125473,242.04,241.95,7.44125473]
[1732749909836,7.07434999,242.03,241.95,7.44125473]
[1732749910032,7.07434999,242.02,241.99,7.44125473]
[1732749910238,2.0638,242.04,241.99,9.50535473]
[1732749910535,7.07459995,242.03,241.99,9.50535473]
[1732749910736,11.20625473,242.08,241.99,7.44125473]
[1732749910937,7.07452549,242.07,241.99,7.44125473]
[1732749911126,7.07452549,242.06,241.99,7.44125473]
[1732749911332,7.07452549,242.05,241.99,7.44125473]
[1732749911528,7.07452549,242.05,242.01,2.064]
[1732749911736,3.765,242.08,241.99,7.44125473]
[1732749912028,7.07417426,242.07,242.0,2.0641]
[1732749912338,7.07417426,242.06,242.0,2.0641]
[1732749912534,7.07417426,242.05,242.0,2.0641]
[1732749912743,2.0638,242.05,242.0,2.0641]
[1732749913539,7.44125473,242.07,241.97,2.0643]
[1732749913728,3.765,242.08,241.99,2.28]
[1732749913729,7.44125473,242.05,241.99,2.28]
[1732749913935,7.07408724,242.04,241.96,7.44125473]
[1732749914333,2.0641,242.0,241.96,7.44125473]
[1732749914834,7.44125473,242.03,241.94,7.44125473]
[1732749915136,7.07503723,242.02,241.96,7.44125473]
[1732749915337,7.44125473,242.06,241.97,2.0643]
[1732749915536,7.07524941,242.05,241.97,2.0643]
[1732749915739,7.07524941,242.04,241.97,2.0643]
[1732749915941,2.0644,241.98,241.94,7.44125473]
[1732749916143,7.44125473,242.04,241.94,7.44125473]
[1732749916439,7.07553426,242.03,241.96,7.44125473]
[1732749916637,7.44125473,242.04,241.96,7.44125473]
[1732749916845,7.07538306,242.03,241.96,7.44125473]
[1732749917141,7.07538306,242.02,241.96,7.44125473]
[1732749917336,7.44125473,242.04,241.96,7.44125473]
[1732749917535,7.07504805,242.03,241.96,7.44125473]
[1732749917735,7.07535464,242.02,241.96,7.44125473]
[1732749917937,2.0638,242.03,241.98,7.44125473]
[1732749918148,11.20625473,242.08,241.98,7.44125473]
[1732749918444,7.44125473,242.05,241.99,2.28]
[1732749918643,2.0639,242.03,241.99,2.28]
[1732749918837,7.44125473,242.05,241.99,2.28]
[1732749919041,7.07431909,242.04,241.99,2.28]
[1732749919243,7.07431909,242.03,241.99,2.28]
[1732749919443,7.44125473,242.05,241.99,2.28]
[1732749919744,7.07407314,242.04,241.99,2.28]
[1732749919941,7.07407314,242.03,241.99,2.28]
[1732749920143,7.44125473,242.05,241.99,2.28]
[1732749920341,7.07385722,242.04,241.99,2.28]
[1732749920537,7.07385722,242.03,241.99,2.28]
[1732749920739,7.07385722,242.02,241.99,2.28]
[1732749920938,7.44125473,242.07,241.99,4.3442]
[1732749921135,7.07401479,242.06,241.99,4.3442]
[1732749921343,7.44125473,242.07,241.99,4.3442]
[1732749921344,7.07401479,242.05,241.99,2.28]
[1732749921541,7.07401479,242.04,241.99,2.28]
[1732749921742,2.0639,242.03,241.99,2.28]
[1732749922049,7.44125473,242.07,241.99,2.28]
[1732749922345,2.0639,242.02,241.99,4.3442]
[1732749923835,2.0639,242.02,241.99,2.28]
[1732749924656,2.0639,242.02,241.99,4.3442]
[1732749924846,7.44125473,242.05,241.96,2.28]
[1732749925150,7.44125473,242.03,241.96,2.28]
[1732749925347,2.0643,241.98,241.96,2.28]
[1732749925545,7.44125473,242.03,241.93,7.44125473]
[1732749925740,7.44125473,242.0,241.92,2.28]
[1732749925940,7.44125473,241.98,241.9,2.28]
[1732749926143,7.44125473,241.98,241.89,9.72125473]
[1732749926549,7.44125473,241.98,241.89,11.78625473]
[1732749926842,1.2419,241.99,241.89,9.72125473]
[1732749927142,7.07502421,241.98,241.9,2.0649]
[1732749927537,7.07502421,241.98,241.91,7.44125473]
[1732749927748,2.0646,241.94,241.91,9.50615473]
[1732749928745,1.2419,241.99,241.93,7.44125473]
[1732749929245,7.07434039,241.98,241.91,7.44125473]
[1732749929447,1.2419,241.99,241.91,7.44125473]
[1732749929745,7.07471618,241.98,241.91,7.44125473]
[1732749929949,1.2419,241.99,241.91,7.44125473]
[1732749930150,2.0646,241.95,241.91,9.50615473]
[1732749931439,1.2419,241.99,241.91,7.44125473]
[1732749932046,7.07476162,241.98,241.91,7.44125473]
[1732749932248,2.0647,241.93,241.9,2.0649]
[1732749932449,1.2419,241.99,241.9,9.50615473]
[1732749932641,7.07487351,241.98,241.9,9.50615473]
[1732749932846,1.2419,241.99,241.9,9.50615473]
[1732749933045,7.07494908,241.98,241.9,9.50615473]
[1732749933353,2.0647,241.93,241.9,9.50615473]
[1732749933552,2.0647,241.93,241.9,7.44125473]
[1732749933940,2.0649,241.92,241.9,7.44125473]
[1732749934146,1.2419,241.99,241.9,7.44125473]
[1732749934346,7.07485978,241.98,241.9,7.44125473]
[1732749934557,2.4794,241.99,241.9,7.44125473]
[1732749934749,7.07525674,241.98,241.9,7.44125473]
[1732749935052,2.4794,241.99,241.9,7.44125473]
[1732749935250,2.0647,241.93,241.9,7.44125473]
[1732749936149,2.28,242.04,241.93,2.0646]
[1732749936359,2.28,242.04,241.92,7.44125473]
[1732749936360,7.44125473,242.02,241.89,2.28]
[1732749936654,8.39284433,242.03,241.9,7.44125473]
[1732749936655,7.44125473,241.99,241.9,7.44125473]
[1732749936855,7.07594433,241.98,241.9,7.44125473]
[1732749937452,2.0647,241.94,241.9,7.44125473]
[1732749938054,2.0647,241.94,241.9,9.50625473]
[1732749938547,7.44125473,241.96,241.73,5.71613233]
[1732749938750,7.44125473,241.93,241.83,7.44125473]
[1732749938952,7.08035877,241.92,241.83,7.44125473]
[1732749939349,7.08035877,241.92,241.84,2.0655]
[1732749939550,7.08035877,241.92,241.81,2.28]
[1732749939746,7.08035877,241.92,241.82,9.50685473]
[1732749940151,2.0652,241.88,241.82,11.78685473]
[1732749940348,2.0652,241.88,241.82,9.72125473]
[1732749940553,7.44125473,241.93,241.83,2.0656]
[1732749940762,7.07864196,241.92,241.82,7.44125473]
[1732749941057,7.44125473,241.93,241.82,7.44125473]
[1732749941058,7.07864196,241.91,241.82,11.78685473]
[1732749941259,2.0652,241.88,241.82,11.78685473]
[1732749941651,2.0652,241.88,241.82,9.72125473]
[1732749941851,2.065,241.9,241.85,7.44125473]
[1732749942059,1.3165,241.94,241.89,7.44125473]
[1732749942254,7.07739692,241.93,241.9,2.0649]
[1732749942552,7.07739692,241.93,241.89,7.44125473]
[1732749942747,7.07739692,241.93,241.91,7.44125473]
[1732749943447,1.2,241.98,241.91,7.44125473]
[1732749943653,2.0646,241.95,241.91,7.44125473]
[1732749944154,2.0646,241.95,241.91,9.50615473]
[1732749945462,2.0643,241.99,241.93,7.44125473]
[1732749945649,7.44125473,242.07,241.98,7.44125473]
[1732749945959,7.07532372,242.06,242.0,7.44125473]
[1732749946160,7.07532372,242.05,242.02,7.44125473]
[1732749946458,7.07532372,242.04,242.02,7.44125473]
[1732749946659,2.0637,242.05,242.02,7.44125473]
[1732749946848,7.07428236,242.04,242.02,7.44125473]
[1732749947055,2.592,242.08,242.01,2.28]
[1732749947254,2.0637,242.05,242.01,9.72125473]
[1732749947454,7.07424813,242.04,242.01,9.72125473]
[1732749947962,2.0638,242.03,241.98,7.44125473]
[1732749948157,7.44125473,242.07,241.98,7.44125473]
[1732749948358,7.07432111,242.06,241.98,7.44125473]
[1732749948563,7.07432111,242.05,241.98,7.44125473]
[1732749948860,7.07432111,242.04,241.98,7.44125473]
[1732749949054,7.07432111,242.03,241.98,7.44125473]
[1732749949362,2.0638,242.03,241.98,9.50555473]
[1732749949756,7.44125473,242.07,241.98,7.44125473]
[1732749950057,7.07424414,242.06,242.0,7.44125473]
[1732749950367,7.07424414,242.05,242.0,7.44125473]
[1732749950555,9.13804414,242.04,242.0,9.50525473]
[1732749950751,1.2864,242.08,242.02,7.44125473]
[1732749950956,7.07393865,242.07,242.0,7.44125473]
[1732749951157,7.07393865,242.06,241.99,7.44125473]
[1732749951362,7.07393865,242.05,241.99,7.44125473]
[1732749951664,2.0642,242.0,241.95,9.50575473]
[1732749952155,2.064,242.02,241.99,7.44125473]
[1732749952351,2.28,242.07,241.99,7.44125473]
[1732749952556,7.07369693,242.06,241.99,7.44125473]
[1732749952757,7.07369693,242.05,241.99,7.44125473]
[1732749952957,2.064,242.02,241.99,7.44125473]
[1732749954165,2.064,242.01,241.98,7.44125473]
[1732749954764,2.064,242.01,241.96,9.50565473]
[1732749955356,2.064,242.01,241.97,2.0644]
[1732749956162,2.064,242.01,241.98,7.44125473]
[1732749958767,2.064,242.01,241.98,9.50555473]
[1732749958974,2.0639,242.02,241.98,9.50555473]
[1732749959375,2.0639,242.02,241.95,2.28]
[1732749959376,2.0638,242.04,242.0,9.50535473]
[1732749960873,2.0637,242.05,242.01,2.064]
[1732749961070,7.07408038,242.04,242.01,2.064]
[1732749961266,1.2864,242.08,242.01,2.064]
[1732749961475,7.07393299,242.07,242.0,9.50535473]
[1732749961774,1.2864,242.08,242.0,9.50535473]
[1732749961775,7.07393299,242.06,242.0,9.50535473]
[1732749961971,1.2864,242.08,242.01,2.064]
[1732749961972,9.13773299,242.05,242.01,2.064]
[1732749962174,7.07393299,242.04,242.01,2.064]
[1732749962379,2.0638,242.05,242.01,2.064]
[1732749962677,7.07374966,242.04,242.01,2.064]
[1732749962878,1.2864,242.08,242.01,2.064]
[1732749963079,2.0638,242.04,242.01,2.064]
[1732749963279,16.5243,242.24,242.02,7.44125473]
[1732749963476,14.5148724,242.12,242.04,7.44125473]
[1732749963676,7.07361767,242.11,242.04,7.44125473]
[1732749963878,7.07361767,242.1,242.04,7.44125473]
[1732749964076,7.07361767,242.09,242.06,7.44125473]
[1732749964271,7.07361767,242.08,242.06,7.44125473]
[1732749964481,7.07361767,242.07,242.06,9.50485473]
[1732749964877,1.22,242.16,242.06,7.44125473]
[1732749965074,1.22,242.16,242.1,7.44125473]
[1732749965277,2.0633,242.1,242.02,2.28]
[1732749965479,1.22,242.16,242.07,7.44125473]
[1732749965680,8.66125473,242.16,242.07,7.44125473]
[1732749966492,2.0632,242.12,242.07,9.50475473]
[1732749966677,2.0632,242.12,242.07,7.44125473]
[1732749968077,2.0632,242.12,242.07,9.50475473]
[1732749969188,2.0632,242.12,242.09,7.44125473]
[1732749969377,2.0632,242.12,242.07,2.0635]
[1732749969378,2.0632,242.12,242.07,9.50475473]
[1732749969583,8.66125473,242.16,242.07,9.50475473]
[1732749970787,2.0635,242.08,242.03,2.0638]
[1732749970987,2.0635,242.08,242.03,9.50505473]
[1732749971185,2.0635,242.08,242.03,7.44125473]
[1732749972089,2.0635,242.08,242.04,2.0637]
[1732749973188,2.0635,242.08,242.05,2.0637]
[1732749973678,2.0635,242.08,242.03,7.44125473]
[1732749973883,2.0635,242.08,242.04,2.0638]
[1732749975691,2.0634,242.08,242.04,2.0638]
[1732749976189,2.0634,242.08,242.06,7.44125473]
[1732749976386,7.44125473,242.15,242.06,7.44125473]
[1732749976587,2.0633,242.1,242.06,7.44125473]
[1732749976787,1.22,242.16,242.06,7.44125473]
[1732749976993,7.04507393,242.15,242.06,7.44125473]
[1732749977299,2.0634,242.08,242.06,7.44125473]
[1732749981396,1.22,242.16,242.06,7.44125473]
[1732749981589,7.04429689,242.15,242.09,7.44125473]
[1732749981789,7.04429689,242.14,242.09,7.44125473]
[1732749981992,1.22,242.16,242.09,7.44125473]
[1732749982191,2.0632,242.12,242.09,7.44125473]
[1732749982389,1.22,242.16,242.09,7.44125473]
[1732749982590,7.04449217,242.15,242.09,7.44125473]
[1732749982790,1.22,242.16,242.11,7.44125473]
[1732749983091,7.04445529,242.15,242.11,7.44125473]
[1732749983291,1.22,242.16,242.09,7.44125473]
[1732749983491,2.0632,242.11,242.09,7.44125473]
[1732749983691,1.22,242.16,242.09,7.44125473]
[1732749983891,7.04462356,242.15,242.09,7.44125473]
[1732749984093,1.22,242.16,242.09,7.44125473]
[1732749984294,7.04462137,242.15,242.09,7.44125473]
[1732749984494,7.04462137,242.14,242.09,7.44125473]